fUST/lending_fUST_20241010
["ID","MTS","AMOUNT","RATE_DAILY","PERIOD"]
[340087833,1728498638876,-150.0,0.000296,2]
[340087834,1728498638886,-21.4757506,0.00030506,2]
[340087873,1728498640572,-179.3968584,0.00030506,2]
[340087875,1728498640582,-200.872609,0.00030659,2]
[340087877,1728498640592,-1006.3188446,0.00034759,2]
[340087879,1728498640601,-500.89596928,0.00035283,5]
[340087881,1728498640611,-500.0,0.00035283,5]
[340087883,1728498640620,-500.0,0.00035513,5]
[340087885,1728498640629,-167.58084613,0.00035513,5]
[340087887,1728498640639,-1562.09794256,0.0003587,2]
[340087889,1728498640648,-874.86,0.00035928,10]
[340087891,1728498640657,-376.64,0.00035928,10]
[340087893,1728498640668,-115.69889664,0.00035928,10]
[340087895,1728498640679,-198.16110336,0.00035928,10]
[340087896,1728498640689,-65107.980493,0.00035937,5]
[340087897,1728498640698,-14958.3511937,0.00035938,5]
[340087899,1728498640708,-14958.3511937,0.0003594,5]
[340087901,1728498640717,-500.0,0.00035945,15]
[340087903,1728498640727,-500.0,0.00035945,15]
[340087905,1728498640736,-500.0,0.00035945,15]
[340087907,1728498640746,-500.0,0.00035945,15]
[340087909,1728498640755,-500.0,0.00035945,15]
[340087911,1728498640764,-500.0,0.00035945,15]
[340087913,1728498640774,-500.0,0.00035945,15]
[340087915,1728498640784,-500.0,0.00035945,15]
[340087917,1728498640795,-500.0,0.00035945,15]
[340087919,1728498640804,-221.10894419,0.00035945,15]
[340087921,1728498640815,-500.0,0.00035945,15]
[340087923,1728498640824,-500.0,0.00035945,15]
[340087926,1728498640833,-14958.3511937,0.00035946,5]
[340087928,1728498640844,-65107.980493,0.00035946,5]
[340087930,1728498640855,-151.0,0.00035947,14]
[340087932,1728498640868,-151.0,0.00035947,14]
[340087934,1728498640878,-151.0,0.00035947,14]
[340087936,1728498640889,-151.0,0.00035947,14]
[340087939,1728498640898,-151.0,0.00035947,14]
[340087941,1728498640908,-151.0,0.00035947,14]
[340087943,1728498640919,-14958.3511937,0.00035948,5]
[340087945,1728498640930,-172.12353,0.00035948,14]
[340087947,1728498640940,-151.0,0.00035948,14]
[340087949,1728498640952,-151.0,0.00035948,14]
[340087951,1728498640962,-151.0,0.00035948,14]
[340087953,1728498640971,-332.28918547,0.00035948,15]
[340087955,1728498640981,-500.0,0.00035948,15]
[340087957,1728498640990,-500.0,0.00035948,15]
[340087959,1728498641000,-255.06789693,0.00035948,15]
[340087961,1728498641010,-583.9879197,0.00035948,15]
[340087963,1728498641024,-583.9879197,0.00035948,15]
[340087965,1728498641033,-500.0,0.00035948,15]
[340087967,1728498641044,-500.0,0.00035948,15]
[340087969,1728498641055,-583.9879197,0.00035948,15]
[340087971,1728498641066,-398.82963855,0.00035948,15]
[340087973,1728498641075,-583.9879197,0.00035948,15]
[340087975,1728498641084,-583.9879197,0.00035948,15]
[340087977,1728498641094,-500.0,0.00035948,15]
[340087979,1728498641103,-583.9879197,0.00035948,15]
[340087981,1728498641112,-583.9879197,0.00035948,15]
[340087983,1728498641122,-500.0,0.00035948,15]
[340087985,1728498641131,-417.82016264,0.00035948,15]
[340087987,1728498641140,-583.9879197,0.00035948,15]
[340087989,1728498641149,-583.9879197,0.00035948,15]
[340087991,1728498641159,-583.9879197,0.00035948,15]
[340087993,1728498641168,-583.9879197,0.00035948,15]
[340087995,1728498641178,-583.9879197,0.00035948,15]
[340087997,1728498641189,-583.9879197,0.00035948,15]
[340087999,1728498641200,-583.9879197,0.00035948,15]
[340088001,1728498641209,-1813.45168703,0.00035948,15]
[340088003,1728498641218,-1813.45168703,0.00035948,15]
[340088005,1728498641227,-1813.45168703,0.00035948,15]
[340088007,1728498641236,-1813.45168703,0.00035948,15]
[340088009,1728498641246,-1813.45168703,0.00035948,15]
[340088011,1728498641255,-1813.45168703,0.00035948,15]
[340088013,1728498641264,-1813.45168703,0.00035948,15]
[340088015,1728498641273,-1813.45168703,0.00035948,15]
[340088017,1728498641284,-1813.45168703,0.00035948,15]
[340088019,1728498641293,-1813.45168703,0.00035948,15]
[340088021,1728498641303,-1956.61892549,0.00035948,15]
[340088023,1728498641314,-1956.61892549,0.00035948,15]
[340088025,1728498641324,-1956.61892549,0.00035948,15]
[340088027,1728498641333,-1956.61892549,0.00035948,15]
[340088029,1728498641342,-1956.61892549,0.00035948,15]
[340088031,1728498641352,-1956.61892549,0.00035948,15]
[340088033,1728498641360,-176.292184,0.00035949,14]
[340088035,1728498641370,-65107.980493,0.00035949,5]
[340088037,1728498641379,-151.0,0.0003595,14]
[340088051,1728498641502,-191.61338,0.0003595,14]
[340088054,1728498641512,-191.61338,0.0003595,14]
[340088056,1728498641521,-151.0,0.0003595,14]
[340088058,1728498641531,-151.0,0.0003595,14]
[340088060,1728498641540,-151.0,0.0003595,14]
[340088062,1728498641549,-277.624318,0.0003595,14]
[340088064,1728498641563,-277.624318,0.0003595,14]
[340088066,1728498641572,-14958.3511937,0.0003595,5]
[340088068,1728498641581,-151.0,0.0003595,14]
[340088070,1728498641590,-151.0,0.0003595,14]
[340088072,1728498641599,-151.0,0.0003595,14]
[340088074,1728498641609,-14958.3511937,0.0003595,5]
[340088076,1728498641619,-151.0,0.00035956,14]
[340088078,1728498641628,-241.031494,0.00035956,14]
[340088080,1728498641637,-151.0,0.00035956,14]
[340088082,1728498641647,-151.0,0.00035956,14]
[340088084,1728498641656,-156.120694,0.00035956,14]
[340088086,1728498641666,-151.0,0.00035956,14]
[340088088,1728498641675,-151.0,0.00035956,14]
[340088090,1728498641685,-160.0,0.00035956,10]
[340088092,1728498641695,-151.0,0.00035958,14]
[340088094,1728498641704,-151.0,0.00035958,14]
[340088096,1728498641714,-151.0,0.00035958,14]
[340088098,1728498641724,-151.0,0.00035958,14]
[340088100,1728498641733,-151.0,0.00035958,14]
[340088102,1728498641742,-191.61338,0.00035958,14]
[340088104,1728498641750,-191.61338,0.00035958,14]
[340088106,1728498641760,-191.61338,0.00035958,14]
[340088108,1728498641770,-191.61338,0.00035958,14]
[340088110,1728498641779,-191.61338,0.00035958,14]
[340088112,1728498641789,-191.61338,0.00035958,14]
[340088114,1728498641799,-242.191344,0.00035958,14]
[340088116,1728498641809,-151.0,0.00035958,14]
[340088118,1728498641822,-151.0,0.00035958,14]
[340088120,1728498641831,-277.624318,0.00035958,14]
[340088122,1728498641841,-277.624318,0.00035958,14]
[340088124,1728498641850,-277.624318,0.00035958,14]
[340088126,1728498641859,-277.624318,0.00035958,14]
[340088128,1728498641869,-157.661528,0.00035958,14]
[340088130,1728498641879,-196.211188,0.00035958,14]
[340088132,1728498641888,-151.0,0.00035959,14]
[340088134,1728498641898,-191.61338,0.00035959,14]
[340088136,1728498641907,-191.61338,0.00035959,14]
[340088138,1728498641917,-151.0,0.00035959,14]
[340088140,1728498641928,-277.624318,0.00035959,14]
[340088142,1728498641937,-277.624318,0.00035959,14]
[340088144,1728498641946,-29916.7023873,0.00035959,5]
[340088146,1728498641956,-23608.63888637,0.00035959,5]
[340088148,1728498641968,-1999.98674099,0.00035959,5]
[340088151,1728498641980,-831.80088519,0.00035959,5]
[340088290,1728498646536,-1008.58045056,0.00035959,5]
[340088291,1728498646548,-2701.58729381,0.00035959,5]
[340088301,1728498733175,606.22,0.00022,2]
[340088348,1728499832698,-400.0,0.00032326,2]
[340088349,1728499832708,-400.0,0.00032326,2]
[340088350,1728499832718,-5910.67139867,0.00032327,2]
[340088450,1728499843521,-3138.71812633,0.00032327,2]
[340088452,1728499843533,-414.5531199,0.00032896,2]
[340088453,1728499843543,-336.28841115,0.00034659,2]
[340088455,1728499843553,-152.3,0.00035523,6]
[340088456,1728499843564,-291.6809518,0.00035616,2]
[340088457,1728499843574,-153.0,0.00035616,2]
[340088458,1728499843584,-153.0,0.00035616,2]
[340088459,1728499843594,-153.0,0.00035616,2]
[340088460,1728499843604,-2485.40759614,0.00035873,2]
[340088461,1728499843614,-174.79921461,0.00035897,2]
[340088462,1728499843625,-2578.42845369,0.00035897,2]
[340088463,1728499843635,-151.0,0.00035949,14]
[340088464,1728499843646,-151.998676,0.00035949,14]
[340088466,1728499843655,-151.0,0.00035949,14]
[340088467,1728499843665,-151.0,0.00035962,14]
[340088469,1728499843675,-970.0,0.00035962,30]
[340088471,1728499843685,-970.0,0.00035962,30]
[340088473,1728499843695,-970.0,0.00035962,30]
[340088475,1728499843705,-970.0,0.00035962,30]
[340088477,1728499843715,-970.0,0.00035962,30]
[340088479,1728499843725,-476.867476,0.00035962,30]
[340088480,1728499843736,-151.0,0.00035962,14]
[340088481,1728499843752,-151.0,0.00035962,14]
[340088482,1728499843767,-261.55,0.00035969,10]
[340088483,1728499843777,-217.96,0.00035969,10]
[340088484,1728499843788,-181.64,0.00035969,10]
[340088485,1728499843800,-151.36,0.00035969,10]
[340088486,1728499843811,-520.11465162,0.00035973,5]
[340088487,1728499843823,-394.72394455,0.00035973,5]
[340088488,1728499843834,-251.90182774,0.00035973,5]
[340088489,1728499843846,-500.0,0.00035973,5]
[340088490,1728499843859,-500.0,0.00035973,5]
[340088491,1728499843870,-501.20928329,0.00035973,5]
[340088492,1728499843882,-261.97702446,0.00035973,5]
[340088493,1728499843892,-501.41483387,0.00035973,5]
[340088494,1728499843901,-500.0,0.00035973,5]
[340088495,1728499843911,-501.03328971,0.00035973,5]
[340088496,1728499843922,-616.72239029,0.00035973,5]
[340088497,1728499843932,-500.0,0.00035973,5]
[340088498,1728499843942,-501.74444936,0.00035973,5]
[340088499,1728499843953,-500.0,0.00035973,5]
[340088500,1728499843963,-285.9511274,0.00035973,5]
[340088501,1728499843973,-550.26546462,0.00035973,5]
[340088502,1728499843983,-500.0,0.00035973,5]
[340088503,1728499843993,-500.0,0.00035973,5]
[340088504,1728499844002,-150.0,0.00035973,5]
[340088505,1728499844013,-584.35462948,0.00035973,5]
[340088506,1728499844023,-500.0,0.00035973,5]
[340088507,1728499844033,-500.0,0.00035973,5]
[340088508,1728499844043,-500.0,0.00035973,2]
[340088509,1728499844052,-159.54054384,0.00035973,5]
[340088510,1728499844062,-58270.0846752,0.00035978,5]
[340088511,1728499844071,-500.0,0.00035978,15]
[340088512,1728499844082,-372.65867124,0.00035978,15]
[340088513,1728499844091,-500.0,0.00035978,15]
[340088514,1728499844101,-500.0,0.00035978,15]
[340088515,1728499844111,-308.473827,0.00035978,15]
[340088516,1728499844121,-535.67885078,0.00035978,15]
[340088517,1728499844131,-372.82793422,0.00035978,15]
[340088518,1728499844141,-420.61769402,0.00035978,15]
[340088519,1728499844152,-500.0,0.00035978,15]
[340088520,1728499844163,-500.0,0.00035978,15]
[340088521,1728499844173,-500.0,0.00035978,15]
[340088522,1728499844183,-25963.6566568,0.00035979,5]
[340088523,1728499844194,-12981.8283284,0.00035979,5]
[340088524,1728499844205,-58270.0846752,0.00035979,5]
[340088525,1728499844218,-160.0,0.00035979,10]
[340088526,1728499844230,-1039.09,0.0003598,7]
[340088527,1728499844242,-277.624318,0.0003598,14]
[340088528,1728499844252,-151.0,0.0003598,14]
[340088529,1728499844263,-277.624318,0.0003598,14]
[340088530,1728499844275,-151.0,0.0003598,14]
[340088531,1728499844286,-151.0,0.0003598,14]
[340088532,1728499844295,-151.0,0.0003598,14]
[340088533,1728499844304,-25418.44840169,0.0003598,5]
[340088564,1728500350903,970.14813722,0.0002,5]
[340088614,1728501031889,-400.0,0.0003355,2]
[340088616,1728501031899,-400.0,0.0003355,2]
[340088618,1728501031909,-9156.44079603,0.00033551,2]
[340088620,1728501031921,-418.22310756,0.00033551,2]
[340088622,1728501031933,-1004.25000015,0.00033551,2]
[340088625,1728501031946,-10435.22195,0.00033551,2]
[340088627,1728501031959,-2112.99295383,0.00033551,2]
[340088630,1728501031975,-1772.87119243,0.00033551,2]
[340088632,1728501031985,-153.0,0.00034658,2]
[340088634,1728501031997,-153.0,0.00034658,2]
[340088636,1728501032006,-153.0,0.00034658,2]
[340088637,1728501032015,-153.0,0.00034658,2]
[340088639,1728501032027,-152.3,0.0003552,6]
[340088641,1728501032036,-376.4192249,0.00035873,2]
[340088643,1728501032047,-376.4192249,0.00035875,2]
[340088645,1728501032058,-376.4192249,0.00035877,2]
[340088647,1728501032069,-376.4192249,0.00035878,2]
[340088649,1728501032078,-376.4192249,0.0003588,2]
[340088650,1728501032088,-1405.88814834,0.0003589,2]
[340088652,1728501032098,-181.64,0.00035952,10]
[340088654,1728501032108,-110.70453473,0.00035952,10]
[340088656,1728501032121,-40.65546527,0.00035952,10]
[340088658,1728501032131,-6603.17131031,0.00035963,5]
[340088660,1728501032143,-466.88468717,0.00035963,5]
[340088662,1728501032155,-325.0,0.00035963,5]
[340088758,1728501038068,-2001.35592145,0.00035963,5]
[340088760,1728501038080,-4055.45891998,0.00035963,5]
[340088772,1728501038302,-69.31623439,0.00035963,5]
[340088773,1728501038313,-1368.03787647,0.00035963,5]
[340088774,1728501038325,-5444.75707389,0.00035963,5]
[340088802,1728501040009,-58877.74681374,0.00035963,5]
[340088803,1728501040019,-372.65867124,0.00035968,15]
[340088804,1728501040029,-500.0,0.00035968,15]
[340088805,1728501040038,-500.0,0.00035968,15]
[340088806,1728501040048,-500.0,0.00035968,15]
[340088807,1728501040057,-500.0,0.00035968,15]
[340088808,1728501040067,-535.67885078,0.00035968,15]
[340088809,1728501040077,-500.0,0.00035968,15]
[340088810,1728501040086,-308.473827,0.00035968,15]
[340088811,1728501040095,-500.0,0.00035968,15]
[340088812,1728501040106,-372.82793422,0.00035968,15]
[340088813,1728501040116,-420.61769402,0.00035968,15]
[340088814,1728501040128,-1088.43,0.00035968,2]
[340088815,1728501040140,-1088.43,0.00035968,2]
[340088816,1728501040152,-1088.43,0.00035968,2]
[340088817,1728501040161,-1088.43,0.00035968,2]
[340088818,1728501040171,-1088.43,0.00035968,2]
[340088819,1728501040180,-1088.43,0.00035968,2]
[340088820,1728501040189,-1088.43,0.00035968,2]
[340088821,1728501040200,-1088.43,0.00035968,2]
[340088822,1728501040211,-1088.43,0.00035968,2]
[340088823,1728501040220,-1088.43,0.00035968,2]
[340088824,1728501040231,-151.0,0.00035969,14]
[340088825,1728501040242,-277.624318,0.00035969,14]
[340088826,1728501040253,-277.624318,0.00035969,14]
[340088827,1728501040263,-151.0,0.00035969,14]
[340088828,1728501040278,-9051.63904543,0.00035969,25]
[340088829,1728501040287,-10843.25752281,0.00035969,25]
[340088830,1728501040297,-27042.3741466,0.00035969,5]
[340088831,1728501040306,-26030.69769747,0.00035969,5]
[340088832,1728501040319,-250.76015273,0.00035969,5]
[340088833,1728501040333,-39409.0839139,0.00035969,5]
[340088834,1728501040344,-395.6864101,0.00035969,15]
[340088835,1728501040354,-500.0,0.00035969,15]
[340088836,1728501040365,-729.11691509,0.00035969,15]
[340088837,1728501040374,-500.0,0.00035969,15]
[340088838,1728501040384,-729.11691509,0.00035969,15]
[340088839,1728501040393,-319.37794249,0.00035969,15]
[340088840,1728501040402,-729.11691509,0.00035969,15]
[340088841,1728501040412,-500.0,0.00035969,15]
[340088842,1728501040422,-600.11665442,0.00035969,15]
[340088843,1728501040431,-729.11691509,0.00035969,15]
[340088844,1728501040441,-500.0,0.00035969,15]
[340088845,1728501040451,-500.0,0.00035969,15]
[340088846,1728501040460,-617.43565723,0.00035969,15]
[340088847,1728501040470,-500.0,0.00035969,15]
[340088848,1728501040480,-729.11691509,0.00035969,15]
[340088849,1728501040492,-729.11691509,0.00035969,15]
[340088850,1728501040502,-729.11691509,0.00035969,15]
[340088851,1728501040514,-729.11691509,0.00035969,15]
[340088852,1728501040523,-729.11691509,0.00035969,15]
[340088853,1728501040533,-729.11691509,0.00035969,15]
[340088854,1728501040544,-729.11691509,0.00035969,15]
[340088855,1728501040555,-729.11691509,0.00035969,15]
[340088856,1728501040565,-729.11691509,0.00035969,15]
[340088857,1728501040576,-1701.00918227,0.00035969,15]
[340088858,1728501040587,-1701.00918227,0.00035969,15]
[340088859,1728501040596,-1701.00918227,0.00035969,15]
[340088860,1728501040606,-1701.00918227,0.00035969,15]
[340088861,1728501040616,-1701.00918227,0.00035969,15]
[340088862,1728501040628,-1701.00918227,0.00035969,15]
[340088863,1728501040639,-1701.00918227,0.00035969,15]
[340088864,1728501040649,-1701.00918227,0.00035969,15]
[340088865,1728501040661,-1701.00918227,0.00035969,15]
[340088866,1728501040673,-1765.17005494,0.00035969,15]
[340088867,1728501040683,-1814.59481648,0.00035969,15]
[340088868,1728501040692,-2191.47220144,0.00035969,15]
[340088869,1728501040701,-1665.51887309,0.00035969,15]
[340088870,1728501040710,-1998.62264771,0.00035969,15]
[340088871,1728501040720,-1998.62264771,0.00035969,15]
[340088872,1728501040730,-241.031494,0.0003597,14]
[340088873,1728501040739,-277.624318,0.0003597,14]
[340088874,1728501040748,-277.624318,0.0003597,14]
[340088875,1728501040758,-277.624318,0.0003597,14]
[340088876,1728501040767,-277.624318,0.0003597,14]
[340088877,1728501040776,-27042.3741466,0.0003597,5]
[340088878,1728501040789,-107423.99656769,0.0003597,5]
[340088961,1728501738897,-414.5531199,0.00030423,2]
[340088962,1728501738920,-166.666666,0.00030448,2]
[340088963,1728501738943,-5005.4219788,0.00030783,2]
[340088964,1728501738965,-159.535733,0.00032652,2]
[340088965,1728501738986,-336.28841115,0.00032693,2]
[340088966,1728501739010,-400.0,0.00032789,2]
[340088967,1728501739033,-400.0,0.0003279,2]
[340088968,1728501739056,-24900.0,0.00032793,2]
[340088969,1728501739078,-187.5,0.00033226,2]
[340088970,1728501739099,-2334.376968,0.0003332,2]
[340088971,1728501739122,-187.5,0.00033804,2]
[340088972,1728501739143,-2334.376968,0.00034005,2]
[340088973,1728501739167,-187.5,0.00034381,2]
[340088974,1728501739188,-2334.376968,0.0003469,2]
[340088975,1728501739210,-187.5,0.00034958,2]
[340088976,1728501739232,-461.06187691,0.00035,5]
[340088977,1728501739257,-560.0,0.00035238,2]
[340088978,1728501739278,-152.2,0.00035524,6]
[340088979,1728501739300,-10671.55994277,0.0003589,2]
[340088980,1728501739323,-206.05,0.00035969,10]
[340088981,1728501739346,-174.79921461,0.00035972,2]
[340088982,1728501739368,-2753.73017906,0.00035972,2]
[340088983,1728501739389,-520.11465162,0.00035973,5]
[340088984,1728501739410,-500.67834229,0.00035973,5]
[340088985,1728501739432,-500.0,0.00035973,5]
[340088986,1728501739454,-331.83181629,0.00035973,5]
[340088987,1728501739476,-500.0,0.00035973,5]
[340088988,1728501739500,-394.72394455,0.00035973,5]
[340088989,1728501739521,-251.90182774,0.00035973,5]
[340088990,1728501739549,-500.0,0.00035973,5]
[340088991,1728501739571,-501.20928329,0.00035973,5]
[340088992,1728501739593,-261.97702446,0.00035973,5]
[340088993,1728501739614,-500.0,0.00035973,5]
[340088994,1728501739638,-501.41483387,0.00035973,5]
[340088995,1728501739660,-501.03328971,0.00035973,5]
[340088996,1728501739681,-616.72239029,0.00035973,5]
[340088997,1728501739703,-501.74444936,0.00035973,5]
[340088998,1728501739724,-500.0,0.00035973,5]
[340088999,1728501739746,-500.0,0.00035973,5]
[340089000,1728501739777,-550.26546462,0.00035973,5]
[340089001,1728501739798,-285.9511274,0.00035973,5]
[340089002,1728501739820,-500.0,0.00035973,5]
[340089003,1728501739842,-470.47146592,0.00035973,5]
[340089004,1728501739864,-500.0,0.00035973,5]
[340089005,1728501739886,-500.0,0.00035973,5]
[340089006,1728501739907,-500.0,0.00035973,5]
[340089007,1728501739929,-584.35462948,0.00035973,5]
[340089008,1728501739953,-159.54054384,0.00035973,5]
[340089009,1728501739974,-150.0,0.00035973,5]
[340089010,1728501739998,-500.0,0.00035973,5]
[340089011,1728501740019,-500.0,0.00035973,2]
[340089012,1728501740040,-500.0,0.00035973,5]
[340089013,1728501740066,-11493.0090123,0.00035978,5]
[340089014,1728501740088,-999.90001,0.00035978,2]
[340089015,1728501740111,-56784.15786677,0.00035979,5]
[340089051,1728502232007,-300.0,0.00024999,2]
[340089052,1728502232017,-300.0,0.00024999,2]
[340089053,1728502232026,-1034.62369105,0.00025,2]
[340089054,1728502232036,-164.60626308,0.00025,2]
[340089055,1728502232046,-202.33773355,0.00025,2]
[340089056,1728502232058,-507.17199173,0.00025,2]
[340089057,1728502232071,-344.82248441,0.00025,2]
[340089058,1728502232080,-823.32638635,0.00025,2]
[340089059,1728502232090,-525.36972125,0.00026,2]
[340089060,1728502232100,-393.0,0.00027082,2]
[340089061,1728502232109,-420.0,0.00027499,2]
[340089062,1728502232119,-360.62074554,0.00029,2]
[340089063,1728502232134,-495.15539701,0.00029,2]
[340089064,1728502232146,-180.6735046,0.00034331,2]
[340089065,1728502232157,-134.14250815,0.00035869,2]
[340089066,1728502232170,-1217.7,0.00035869,2]
[340089067,1728502232185,-3871.17269987,0.00035869,2]
[340089068,1728502232194,-250.0,0.00035874,2]
[340089069,1728502232204,-1976.32730013,0.0003588,2]
[340089070,1728502232215,-675.36901997,0.0003588,2]
[340089071,1728502232225,-2651.69632008,0.00035882,2]
[340089072,1728502232235,-2651.69632008,0.00035884,2]
[340089073,1728502232244,-2651.69632008,0.00035886,2]
[340089074,1728502232254,-1026.91275999,0.00035888,2]
[340089114,1728502238150,-1500.0,0.00035888,2]
[340089116,1728502238164,-124.78356009,0.00035888,2]
[340089118,1728502238173,-1422.54453729,0.000359,2]
[340089120,1728502238182,-345.73,0.00035959,10]
[340089122,1728502238192,-346.32,0.00035959,3]
[340089123,1728502238201,-539.8,0.00035959,10]
[340089125,1728502238210,-58252.73389,0.00035969,5]
[340089127,1728502238220,-500.0,0.00035969,15]
[340089129,1728502238231,-500.0,0.00035969,15]
[340089131,1728502238241,-500.0,0.00035969,15]
[340089133,1728502238250,-500.0,0.00035969,15]
[340089135,1728502238260,-500.0,0.00035969,15]
[340089137,1728502238271,-500.0,0.00035969,15]
[340089139,1728502238282,-500.0,0.00035969,15]
[340089141,1728502238291,-500.0,0.00035969,15]
[340089143,1728502238302,-500.0,0.00035969,15]
[340089145,1728502238315,-500.0,0.00035969,15]
[340089147,1728502238327,-164.86018878,0.00035969,15]
[340089149,1728502238336,-500.0,0.00035969,15]
[340089151,1728502238346,-500.0,0.00035969,15]
[340089152,1728502238356,-171.34862123,0.00035969,15]
[340089153,1728502238365,-500.0,0.00035969,15]
[340089154,1728502238375,-500.0,0.00035969,15]
[340089155,1728502238386,-500.0,0.00035969,15]
[340089156,1728502238402,-500.0,0.00035969,15]
[340089157,1728502238411,-500.0,0.00035969,15]
[340089158,1728502238421,-249.40708866,0.00035969,15]
[340089159,1728502238432,-500.0,0.00035969,15]
[340089160,1728502238444,-500.0,0.00035969,15]
[340089161,1728502238454,-500.0,0.00035969,15]
[340089162,1728502238465,-500.0,0.00035969,15]
[340089163,1728502238476,-500.0,0.00035969,15]
[340089164,1728502238487,-500.0,0.00035969,15]
[340089165,1728502238497,-500.0,0.00035969,15]
[340089166,1728502238507,-500.0,0.00035969,15]
[340089167,1728502238517,-500.0,0.00035969,15]
[340089168,1728502238527,-500.0,0.00035969,15]
[340089169,1728502238537,-500.0,0.00035969,15]
[340089170,1728502238547,-500.0,0.00035969,15]
[340089171,1728502238556,-500.0,0.00035969,15]
[340089172,1728502238566,-500.0,0.00035969,15]
[340089173,1728502238576,-500.0,0.00035969,15]
[340089174,1728502238588,-500.0,0.00035969,15]
[340089175,1728502238598,-500.0,0.00035969,15]
[340089176,1728502238607,-500.0,0.00035969,15]
[340089177,1728502238618,-500.0,0.00035969,15]
[340089178,1728502238630,-500.0,0.00035969,15]
[340089179,1728502238642,-500.0,0.00035969,15]
[340089180,1728502238653,-500.0,0.00035969,15]
[340089181,1728502238662,-356.80549064,0.00035969,15]
[340089182,1728502238672,-500.0,0.00035969,15]
[340089183,1728502238682,-500.0,0.00035969,15]
[340089184,1728502238691,-500.0,0.00035969,15]
[340089185,1728502238704,-500.0,0.00035969,15]
[340089186,1728502238715,-500.0,0.00035969,15]
[340089187,1728502238727,-500.0,0.00035969,15]
[340089188,1728502238739,-500.0,0.00035969,15]
[340089189,1728502238750,-500.0,0.00035969,15]
[340089190,1728502238759,-500.0,0.00035969,15]
[340089191,1728502238770,-500.0,0.00035969,15]
[340089192,1728502238780,-500.0,0.00035969,15]
[340089193,1728502238789,-500.0,0.00035969,15]
[340089194,1728502238799,-500.0,0.00035969,15]
[340089195,1728502238808,-500.0,0.00035969,15]
[340089196,1728502238818,-521.64972824,0.00035969,15]
[340089197,1728502238827,-500.0,0.00035969,15]
[340089198,1728502238837,-423.82477918,0.00035969,15]
[340089199,1728502238846,-15681.7554113,0.0003597,5]
[340089200,1728502238855,-31363.5108227,0.0003597,5]
[340089201,1728502238863,-58252.73389,0.0003597,5]
[340089202,1728502238873,-500.0,0.00035973,5]
[340089203,1728502238884,-500.0,0.00035973,5]
[340089204,1728502238893,-500.0,0.00035973,5]
[340089205,1728502238903,-500.0,0.00035973,5]
[340089206,1728502238912,-500.0,0.00035973,5]
[340089207,1728502238922,-319.37794249,0.00035978,15]
[340089208,1728502238931,-500.0,0.00035978,15]
[340089209,1728502238940,-500.0,0.00035978,15]
[340089210,1728502238949,-939.05553373,0.00035978,15]
[340089211,1728502238959,-939.05553373,0.00035978,15]
[340089212,1728502238968,-458.41094443,0.00035978,15]
[340089213,1728502238977,-939.05553373,0.00035978,15]
[340089214,1728502238986,-500.0,0.00035978,15]
[340089215,1728502238995,-500.0,0.00035978,15]
[340089216,1728502239005,-500.0,0.00035978,15]
[340089217,1728502239014,-939.05553373,0.00035978,15]
[340089218,1728502239023,-189.44193539,0.00035978,15]
[340089219,1728502239032,-939.05553373,0.00035978,15]
[340089220,1728502239042,-500.0,0.00035978,15]
[340089221,1728502239051,-500.0,0.00035978,15]
[340089222,1728502239060,-289.60690604,0.00035978,15]
[340089223,1728502239070,-939.05553373,0.00035978,15]
[340089224,1728502239079,-939.05553373,0.00035978,15]
[340089225,1728502239088,-939.05553373,0.00035978,15]
[340089226,1728502239097,-939.05553373,0.00035978,15]
[340089227,1728502239107,-500.0,0.00035978,15]
[340089228,1728502239116,-939.05553373,0.00035978,15]